fUST/lending_fUST_20250722
["ID","MTS","AMOUNT","RATE_DAILY","PERIOD"]
[373906586,1753147845208,-735.69,0.00018304,2]
[373906587,1753147845219,-460.0,0.00018304,2]
[373906588,1753147845228,-460.0,0.00018304,2]
[373906589,1753147845238,-460.0,0.00018304,2]
[373906590,1753147845247,-460.0,0.00018304,2]
[373906591,1753147845257,-951.62,0.00018304,2]
[373906592,1753147845266,-460.0,0.00018304,2]
[373906593,1753147845275,-460.0,0.00018304,2]
[373906594,1753147845285,-460.0,0.00018304,2]
[373906595,1753147845294,-460.0,0.00018304,2]
[373906596,1753147845304,-1851.16,0.00018304,2]
[373906597,1753147845313,-1121.71,0.00018304,2]
[373906598,1753147845323,-460.0,0.00018304,2]
[373906599,1753147845333,-460.0,0.00018304,2]
[373906600,1753147845342,-460.0,0.00018304,2]
[373906601,1753147845351,-460.0,0.00018304,2]
[373906602,1753147845361,-1229.04,0.00018304,2]
[373906603,1753147845371,-756.82,0.00018304,2]
[373906604,1753147845380,-460.0,0.00018304,2]
[373906605,1753147845389,-460.0,0.00018304,2]
[373906606,1753147845399,-766.42,0.00018304,2]
[373906607,1753147845408,-460.0,0.00018304,2]
[373906608,1753147845417,-1480.48,0.00018304,2]
[373906609,1753147845426,-460.0,0.00018304,2]
[373906610,1753147845435,-762.6,0.00018304,2]
[373906611,1753147845444,-547.90728985,0.00018304,2]
[373906612,1753147845453,-460.0,0.00018305,2]
[373906613,1753147845462,-460.0,0.00018305,2]
[373906614,1753147845471,-460.0,0.00018305,2]
[373906615,1753147845481,-151.0,0.00018305,2]
[373906616,1753147845490,-151.0,0.00018305,2]
[373906617,1753147845499,-151.0,0.00018305,2]
[373906618,1753147845508,-151.0,0.00018305,2]
[373906619,1753147845517,-1758.06,0.00018305,2]
[373906620,1753147845526,-1799.79,0.00018305,2]
[373906621,1753147845535,-460.0,0.00018305,2]
[373906622,1753147845545,-460.0,0.00018305,2]
[373906623,1753147845554,-1796.61,0.00018305,2]
[373906624,1753147845563,-151.0,0.00018305,2]
[373906625,1753147845573,-460.0,0.00018305,2]
[373906626,1753147845583,-2488.41,0.00018305,2]
[373906627,1753147845592,-697.66,0.00018305,2]
[373906628,1753147845602,-1689.88,0.00018305,2]
[373906629,1753147845611,-523.62,0.00018305,2]
[373906630,1753147845621,-5687.82,0.00018305,2]
[373906631,1753147845630,-283.43861525,0.00018311,2]
[373906632,1753147845640,-381.0,0.00018354,2]
[373906633,1753147845650,-500.0,0.00018365,2]
[373906634,1753147845659,-500.0,0.00018365,2]
[373906635,1753147845669,-476.51375022,0.00018367,2]
[373906636,1753147845680,-12617.54915256,0.0001837,2]
[373906637,1753147845690,-160.0,0.0001837,2]
[373906638,1753147845699,-231.02460978,0.0001837,2]
[373906639,1753147845708,-160.0,0.0001837,2]
[373906640,1753147845719,-160.0,0.0001837,2]
[373906641,1753147845729,-214.60209147,0.0001837,2]
[373906642,1753147845739,-525.99222921,0.0001837,2]
[373906643,1753147845749,-160.0,0.0001837,2]
[373906644,1753147845758,-215.75719967,0.0001837,2]
[373906645,1753147845768,-839.74694734,0.0001837,2]
[373906646,1753147845777,-160.0,0.0001837,2]
[373906647,1753147845786,-160.0,0.0001837,2]
[373906648,1753147845795,-160.0,0.0001837,2]
[373906649,1753147845804,-160.0,0.0001837,2]
[373906650,1753147845815,-160.0,0.0001837,2]
[373906651,1753147845824,-151.0,0.00018416,2]
[373906652,1753147845833,-151.0,0.00018416,2]
[373906653,1753147845843,-151.0,0.00018416,2]
[373906654,1753147845852,-151.0,0.00018416,2]
[373906655,1753147845862,-157.436802,0.00018416,2]
[373906656,1753147845872,-151.0,0.00018416,2]
[373906657,1753147845882,-151.0,0.00018417,2]
[373906658,1753147845891,-6717.38907121,0.00018417,2]
[373906659,1753147845901,-460.0,0.00018477,2]
[373906660,1753147845911,-460.0,0.00018477,2]
[373906661,1753147845920,-796.68081091,0.00018477,2]
[373906662,1753147845930,-1583.92,0.00018477,2]
[373906663,1753147845940,-916.51,0.00018477,2]
[373906664,1753147845949,-557.31,0.00018477,2]
[373906665,1753147845959,-460.0,0.00018477,2]
[373906666,1753147845970,-3120.5,0.00018477,2]
[373906667,1753147845979,-503.23,0.00018477,2]
[373906668,1753147845989,-477.75,0.00018477,2]
[373906669,1753147845998,-1968.28,0.00018477,2]
[373906670,1753147846007,-1276.63,0.00018477,2]
[373906671,1753147846017,-698.63,0.00018477,2]
[373906672,1753147846026,-516.0,0.00018478,2]
[373906673,1753147846036,-831.0,0.00018478,2]
[373906674,1753147846045,-436.77953884,0.00018478,2]
[373906675,1753147846055,-460.0,0.00018478,2]
[373906676,1753147846065,-460.0,0.00018478,2]
[373906677,1753147846074,-460.0,0.00018478,2]
[373906678,1753147846085,-460.0,0.00018478,2]
[373906679,1753147846095,-460.0,0.00018478,2]
[373906680,1753147846104,-460.0,0.00018478,2]
[373906681,1753147846114,-460.0,0.00018478,2]
[373906682,1753147846123,-460.0,0.00018478,2]
[373906683,1753147846136,-460.0,0.00018478,2]
[373906684,1753147846145,-460.0,0.00018478,2]
[373906685,1753147846154,-460.0,0.00018478,2]
[373906686,1753147846163,-460.0,0.00018478,2]
[373906687,1753147846174,-151.0,0.00018478,2]
[373906688,1753147846183,-460.0,0.00018478,2]
[373906689,1753147846192,-460.0,0.00018478,2]
[373906690,1753147846202,-151.0,0.00018478,2]
[373906691,1753147846213,-460.0,0.00018478,2]
[373906692,1753147846222,-494.02,0.00018478,2]
[373906693,1753147846232,-833.31,0.00018478,2]
[373906694,1753147846242,-557.11,0.00018478,2]
[373906695,1753147846252,-610.61,0.00018478,2]
[373906696,1753147846262,-599.52,0.00018478,2]
[373906697,1753147846271,-884.65,0.00018478,2]
[373906698,1753147846281,-889.3,0.00018478,2]
[373906699,1753147846291,-460.0,0.00018478,2]
[373906700,1753147846300,-460.0,0.00018478,2]
[373906701,1753147846309,-544.43,0.00018478,2]
[373906702,1753147846319,-460.0,0.00018478,2]
[373906703,1753147846329,-496.32,0.00018478,2]
[373906705,1753147846339,-460.0,0.00018478,2]
[373906707,1753147846348,-460.0,0.00018478,2]
[373906708,1753147846357,-797.62,0.00018478,2]
[373906709,1753147846367,-460.0,0.00018478,2]
[373906710,1753147846376,-348.63961372,0.00018478,2]
[373906711,1753147846385,-460.0,0.00018478,2]
[373906712,1753147846394,-740.98,0.00018478,2]
[373906713,1753147846404,-791.46,0.00018478,2]
[373906714,1753147846413,-460.0,0.00018478,2]
[373906715,1753147846423,-1276.92,0.00018478,2]
[373906716,1753147846432,-664.11,0.00018478,2]
[373906717,1753147846442,-460.0,0.00018478,2]
[373906718,1753147846451,-151.0,0.00018478,2]
[373906719,1753147846463,-615.85,0.00018478,2]
[373906720,1753147846472,-151.0,0.00018478,2]
[373906722,1753147846482,-460.0,0.00018478,2]
[373906723,1753147846491,-460.0,0.00018478,2]
[373906724,1753147846501,-460.0,0.00018478,2]
[373906725,1753147846511,-460.0,0.00018478,2]
[373906726,1753147846521,-480.65,0.00018478,2]
[373906728,1753147846531,-228.50016861,0.00018478,2]
[373906730,1753147846541,-500.0,0.00018518,2]
[373906731,1753147846550,-478.0,0.00018551,2]
[373906732,1753147846560,-460.0,0.00018578,2]
[373906733,1753147846569,-460.0,0.00018578,2]
[373906734,1753147846579,-5471.31,0.00018578,2]
[373906735,1753147846589,-458.01722966,0.00018578,2]
[373906736,1753147846598,-460.0,0.00018578,2]
[373906737,1753147846607,-902.58,0.00018578,2]
[373906738,1753147846617,-3041.33,0.00018578,2]
[373906739,1753147846626,-735.69,0.00018578,2]
[373906740,1753147846635,-460.0,0.00018578,2]
[373906741,1753147846645,-460.0,0.00018578,2]
[373906743,1753147846655,-460.0,0.00018578,2]
[373906745,1753147846664,-951.62,0.00018578,2]
[373906747,1753147846674,-460.0,0.00018578,2]
[373906748,1753147846683,-460.0,0.00018578,2]
[373906749,1753147846693,-460.0,0.00018578,2]
[373906750,1753147846703,-460.0,0.00018578,2]
[373906751,1753147846715,-1851.16,0.00018578,2]
[373906752,1753147846724,-1121.71,0.00018578,2]
[373906753,1753147846734,-460.0,0.00018578,2]
[373906754,1753147846744,-460.0,0.00018578,2]
[373906755,1753147846755,-460.0,0.00018578,2]
[373906757,1753147846765,-1229.04,0.00018578,2]
[373906758,1753147846774,-756.82,0.00018578,2]
[373906759,1753147846784,-460.0,0.00018578,2]
[373906760,1753147846794,-460.0,0.00018578,2]
[373906761,1753147846804,-766.42,0.00018578,2]
[373906762,1753147846813,-460.0,0.00018578,2]
[373906763,1753147846822,-1480.48,0.00018578,2]
[373906764,1753147846832,-762.6,0.00018578,2]
[373906765,1753147846841,-460.0,0.00018579,2]
[373906766,1753147846850,-460.0,0.00018579,2]
[373906767,1753147846859,-460.0,0.00018579,2]
[373906768,1753147846869,-1758.06,0.00018579,2]
[373906769,1753147846878,-1799.79,0.00018579,2]
[373906771,1753147846887,-460.0,0.00018579,2]
[373906773,1753147846896,-460.0,0.00018579,2]
[373906774,1753147846905,-1796.61,0.00018579,2]
[373906775,1753147846914,-460.0,0.00018579,2]
[373906776,1753147846923,-2488.41,0.00018579,2]
[373906777,1753147846933,-697.66,0.00018579,2]
[373906778,1753147846942,-1689.88,0.00018579,2]
[373906779,1753147846951,-523.62,0.00018579,2]
[373906780,1753147846960,-5687.82,0.00018579,2]
[373906781,1753147846975,-6717.38907121,0.0001859,2]
[373906782,1753147846984,-151.0,0.00018624,2]
[373906783,1753147846993,-151.0,0.00018624,2]
[373906784,1753147847002,-523.54180738,0.0001863,2]
[373906785,1753147847011,-501.9173634,0.0001863,2]
[373906786,1753147847020,-500.0,0.0001863,2]
[373906787,1753147847029,-865.73585449,0.00018671,2]
[373906788,1753147847039,-1000.0,0.00018705,2]
[373906789,1753147847047,-1000.0,0.00018705,2]
[373906790,1753147847057,-500.0,0.00018705,2]
[373906791,1753147847066,-1000.0,0.00018705,2]
[373906792,1753147847075,-502.05026717,0.00018712,2]
[373906793,1753147847084,-151.0,0.00018728,2]
[373906794,1753147847094,-151.0,0.00018728,2]
[373906795,1753147847104,-151.531236,0.00018728,2]
[373906796,1753147847113,-167.457252,0.00018742,2]
[373906797,1753147847123,-151.0,0.00018742,2]
[373906798,1753147847135,-460.0,0.00018751,2]
[373906799,1753147847145,-460.0,0.00018751,2]
[373906800,1753147847154,-1583.92,0.00018751,2]
[373906801,1753147847163,-916.51,0.00018751,2]
[373906802,1753147847173,-557.31,0.00018751,2]
[373906803,1753147847182,-460.0,0.00018751,2]
[373906804,1753147847191,-3120.5,0.00018751,2]
[373906805,1753147847201,-503.23,0.00018751,2]
[373906806,1753147847211,-477.75,0.00018751,2]
[373906807,1753147847223,-1968.28,0.00018751,2]
[373906808,1753147847232,-1276.63,0.00018751,2]
[373906809,1753147847241,-698.63,0.00018751,2]
[373906810,1753147847251,-151.0,0.00018751,2]
[373906811,1753147847260,-516.0,0.00018752,2]
[373906812,1753147847269,-831.0,0.00018752,2]
[373906813,1753147847279,-460.0,0.00018752,2]
[373906814,1753147847288,-460.0,0.00018752,2]
[373906815,1753147847298,-460.0,0.00018752,2]
[373906816,1753147847307,-460.0,0.00018752,2]
[373906817,1753147847317,-460.0,0.00018752,2]
[373906818,1753147847326,-460.0,0.00018752,2]
[373906819,1753147847336,-460.0,0.00018752,2]
[373906820,1753147847345,-460.0,0.00018752,2]
[373906821,1753147847354,-460.0,0.00018752,2]
[373906822,1753147847363,-460.0,0.00018752,2]
[373906823,1753147847372,-460.0,0.00018752,2]
[373906824,1753147847381,-460.0,0.00018752,2]
[373906825,1753147847391,-460.0,0.00018752,2]
[373906826,1753147847400,-460.0,0.00018752,2]
[373906827,1753147847410,-494.02,0.00018752,2]
[373906828,1753147847419,-833.31,0.00018752,2]
[373906829,1753147847429,-557.11,0.00018752,2]
[373906830,1753147847438,-610.61,0.00018752,2]
[373906831,1753147847447,-599.52,0.00018752,2]
[373906832,1753147847457,-884.65,0.00018752,2]
[373906833,1753147847469,-889.3,0.00018752,2]
[373906834,1753147847478,-460.0,0.00018752,2]
[373906835,1753147847487,-460.0,0.00018752,2]
[373906836,1753147847497,-544.43,0.00018752,2]
[373906837,1753147847507,-460.0,0.00018752,2]
[373906838,1753147847516,-496.32,0.00018752,2]
[373906839,1753147847525,-460.0,0.00018752,2]
[373906840,1753147847534,-460.0,0.00018752,2]
[373906841,1753147847544,-797.62,0.00018752,2]
[373906842,1753147847553,-460.0,0.00018752,2]
[373906843,1753147847563,-460.0,0.00018752,2]
[373906844,1753147847572,-740.98,0.00018752,2]
[373906845,1753147847582,-791.46,0.00018752,2]
[373906846,1753147847591,-460.0,0.00018752,2]
[373906847,1753147847600,-1276.92,0.00018752,2]
[373906848,1753147847610,-664.11,0.00018752,2]
[373906849,1753147847619,-460.0,0.00018752,2]
[373906850,1753147847629,-615.85,0.00018752,2]
[373906851,1753147847639,-460.0,0.00018752,2]
[373906852,1753147847648,-460.0,0.00018752,2]
[373906853,1753147847657,-460.0,0.00018752,2]
[373906854,1753147847667,-460.0,0.00018752,2]
[373906855,1753147847676,-480.65,0.00018752,2]
[373906856,1753147847686,-6717.38907121,0.00018762,2]
[373906857,1753147847696,-717.39092415,0.00018774,2]
[373906858,1753147847705,-151.0,0.00018831,2]
[373906859,1753147847716,-460.0,0.00018852,2]
[373906860,1753147847726,-460.0,0.00018852,2]
[373906861,1753147847735,-5471.31,0.00018852,2]
[373906862,1753147847746,-460.0,0.00018852,2]
[373906863,1753147847755,-902.58,0.00018852,2]
[373906864,1753147847765,-3041.33,0.00018852,2]
[373906865,1753147847775,-735.69,0.00018852,2]
[373906866,1753147847784,-460.0,0.00018852,2]
[373906867,1753147847794,-460.0,0.00018852,2]
[373906868,1753147847803,-385.53898709,0.00018852,2]
[373906869,1753147847812,-951.62,0.00018852,2]
[373906870,1753147847821,-460.0,0.00018852,2]
[373906871,1753147847830,-460.0,0.00018852,2]
[373906872,1753147847951,-151.0,0.00018852,2]
[373906873,1753147847961,-460.0,0.00018852,2]
[373906874,1753147847973,-460.0,0.00018852,2]
[373906875,1753147847982,-151.0,0.00018852,2]
[373906876,1753147847991,-1851.16,0.00018852,2]
[373906877,1753147848001,-1121.71,0.00018852,2]
[373906878,1753147848010,-460.0,0.00018852,2]
[373906879,1753147848019,-460.0,0.00018852,2]
[373906880,1753147848029,-151.0,0.00018852,2]
[373906881,1753147848039,-460.0,0.00018852,2]
[373906882,1753147848048,-1229.04,0.00018852,2]
[373906883,1753147848058,-756.82,0.00018852,2]
[373906884,1753147848067,-460.0,0.00018852,2]
[373906885,1753147848077,-460.0,0.00018852,2]
[373906886,1753147848086,-766.42,0.00018852,2]
[373906887,1753147848096,-460.0,0.00018852,2]
[373906888,1753147848105,-1480.48,0.00018852,2]
[373906889,1753147848114,-151.0,0.00018852,2]
[373906890,1753147848125,-151.0,0.00018852,2]
[373906891,1753147848136,-762.6,0.00018852,2]
[373906892,1753147848146,-460.0,0.00018853,2]
[373906893,1753147848155,-460.0,0.00018853,2]
[373906894,1753147848164,-460.0,0.00018853,2]
[373906895,1753147848175,-1758.06,0.00018853,2]
[373906896,1753147848185,-1799.79,0.00018853,2]
[373906897,1753147848195,-383.70270891,0.00018853,2]
[373906898,1753147848206,-1796.61,0.00018853,2]
[373906899,1753147848218,-460.0,0.00018853,2]
[373906900,1753147848236,-2488.41,0.00018853,2]
[373906901,1753147848250,-697.66,0.00018853,2]
[373906902,1753147848260,-1689.88,0.00018853,2]
[373906903,1753147848269,-523.62,0.00018853,2]
[373906904,1753147848279,-5687.82,0.00018853,2]
[373906905,1753147848288,-151.0,0.00018854,2]
[373906906,1753147848298,-151.0,0.00018854,2]
[373906907,1753147848307,-151.0,0.00018854,2]
[373906908,1753147848317,-363131.59240132,0.0001887,2]
[373906909,1753147848483,-988.24847875,0.0001887,2]
[373906910,1753147848495,-11665.0,0.0001887,2]
[373906911,1753147848507,-1070.16714045,0.0001887,2]
[373906912,1753147848519,-2092.5542019,0.0001887,2]
[373906913,1753147848531,-11778.14017649,0.0001887,2]
[373906914,1753147848651,-460.96691867,0.00017656,2]
[373906915,1753147848662,-144.28221417,0.00017757,2]
[373906916,1753147849065,-460.0,0.00017655,2]
[373906917,1753147849076,-362.16,0.00017656,2]
[373906918,1753147849093,-103.54225726,0.00017656,2]
[373906919,1753147849106,-315.71778583,0.00017757,2]
[373906920,1753147849120,-460.0,0.00018031,2]
[373906921,1753147849138,-253.44,0.00018295,3]
[373906922,1753147849150,-460.0,0.00018305,2]
[373906923,1753147849165,-460.0,0.00018579,2]
[373906924,1753147849181,-460.0,0.00018853,2]
[373906925,1753147849193,-3351.17942571,0.0001887,2]
[373906926,1753147849228,-460.0,0.00017654,2]
[373906927,1753147849242,-462.39622403,0.00017656,2]
[373906928,1753147849255,-13523.86571353,0.0001887,2]
[373906929,1753147875762,239.060745,0.00013699,2]
[373906932,1753148109686,150.0,0.00012659,2]
[373906933,1753148110839,150.0,0.00013261,2]
[373906934,1753148111294,150.0,0.00013864,2]
[373906935,1753148111749,150.0,0.00014467,2]
[373906936,1753148122519,183.21194489,0.000222,69]
[373906938,1753148313940,8979.56494428,0.0001652,2]
[373906939,1753148313972,1020.43505572,0.0001652,2]
[373906942,1753148402685,150.0,0.0001282,2]
[373906945,1753148459687,182.484937,0.00016641,2]
[373906946,1753148459909,182.484937,0.00016641,120]
[373906947,1753148488076,198.328,0.00023,30]
[373906948,1753148510646,565.986399,0.00016506,2]
[373906949,1753148530577,150.0,0.00012847,2]
[373906950,1753148548060,7931.09360828,0.00016506,2]
[373906951,1753148548092,10000.0,0.00016506,2]
[373906952,1753148548122,6968.90639172,0.00016506,2]
[373906953,1753148594131,2915.531,0.00024,60]
[373906954,1753148594769,150.0,0.00012888,2]
[373906955,1753148699421,2881.09360828,0.0001675,2]
[373906956,1753148699454,2118.90639172,0.0001675,2]
[373906957,1753148715000,5000.0,0.0001675,2]
[373906958,1753148723000,150.0,0.00012997,2]
[373906959,1753148730836,2731.09360828,0.0001675,2]
[373906960,1753148730867,2268.90639172,0.0001675,2]
[373906961,1753148735083,-1200.0,0.00016799,2]
[373906962,1753148735114,-2274.28215295,0.000168,2]
[373906963,1753148743187,3000.0,0.00023,30]
[373906964,1753148747459,1021.4452033,0.0001675,2]
[373906966,1753148782807,440.9,0.00024658,120]
[373906969,1753148884125,227.107707,0.00013699,2]
[373906970,1753148944094,1271.98,0.000246,60]
[373906972,1753148973094,-1200.0,0.00016799,2]
[373906973,1753148973116,-300.0,0.00016799,2]
[373906974,1753148973137,-1836.0973301,0.000168,2]
[373907069,1753149038936,-1200.0,0.00016799,2]
[373907071,1753149038949,-287.3313553,0.000168,2]
[373907107,1753149039261,-886.55278554,0.000168,2]
[373907109,1753149039276,-3966.70382008,0.000168,2]
[373907112,1753149039291,-4692.42085788,0.000168,2]
[373907116,1753149039302,-300.0,0.00016847,2]
[373907119,1753149039315,-260.0,0.00016848,2]
[373907122,1753149039326,-300.0,0.00016848,2]
[373907124,1753149039338,-300.0,0.00016848,2]
[373907126,1753149039350,-202.39091256,0.00016849,2]
[373907129,1753149039362,-174.53183451,0.00016948,2]
[373907131,1753149039374,-162.96592185,0.00016949,2]
[373907133,1753149039384,-271.60986975,0.00017029,2]
[373907135,1753149039393,-287.29896401,0.00017425,2]
[373907137,1753149039403,-460.0,0.0001747,2]
[373907139,1753149039413,-32585.65502586,0.00017471,2]
[373907142,1753149039423,-460.0,0.00017471,2]
[373907145,1753149039432,-460.0,0.00017471,2]
[373907148,1753149039442,-460.0,0.00017471,2]
[373907151,1753149039451,-581.79,0.00017471,2]
[373907154,1753149039460,-460.0,0.00017471,2]
[373907157,1753149039470,-707.44,0.00017471,2]
[373907160,1753149039479,-460.0,0.00017471,2]
[373907191,1753149039697,-2474.13,0.00017471,2]
[373907194,1753149039714,-460.0,0.00017471,2]
[373907196,1753149039723,-460.0,0.00017471,2]
[373907198,1753149039733,-460.0,0.00017472,2]
[373907200,1753149039746,-461.71584566,0.00017472,2]
[373907202,1753149039756,-460.0,0.00017472,2]
[373907204,1753149039767,-460.0,0.00017472,2]
[373907206,1753149039778,-461.03742344,0.00017472,2]
[373907208,1753149039788,-460.0,0.00017472,2]
[373907210,1753149039797,-460.0,0.00017472,2]
[373907212,1753149039807,-462.14149928,0.00017472,2]
[373907214,1753149039816,-460.0,0.00017472,2]
[373907216,1753149039826,-460.0,0.00017472,2]
[373907218,1753149039835,-460.0,0.00017472,2]
[373907220,1753149039845,-460.0,0.00017472,2]
[373907223,1753149039855,-462.32014531,0.00017472,2]
[373907225,1753149039865,-461.33754537,0.00017472,2]
[373907227,1753149039875,-460.0,0.00017472,2]
[373907229,1753149039884,-351.20684845,0.00017472,2]
[373907231,1753149039893,-460.0,0.00017472,2]
[373907233,1753149039903,-471.40859296,0.00017472,2]
[373907235,1753149039912,-462.64421077,0.00017472,2]
[373907237,1753149039921,-461.67519469,0.00017472,2]
[373907239,1753149039930,-460.0,0.00017472,2]
[373907241,1753149039939,-460.0,0.00017472,2]
[373907243,1753149039948,-460.0,0.00017472,2]
[373907245,1753149039958,-460.0,0.00017472,2]
[373907247,1753149039967,-460.0,0.00017472,2]
[373907249,1753149039976,-460.0,0.00017472,2]
[373907251,1753149039985,-460.0,0.00017472,2]
[373907253,1753149039996,-460.0,0.00017472,2]
[373907255,1753149040006,-460.0,0.00017472,2]
[373907257,1753149040015,-460.79307409,0.00017472,2]
[373907258,1753149040024,-460.0,0.00017472,2]
[373907260,1753149040033,-5831.2536406,0.00017472,2]
[373907262,1753149040043,-461.70581481,0.00017472,2]
[373907265,1753149040053,-460.0,0.00017472,2]
[373907266,1753149040063,-460.0,0.00017472,2]
[373907268,1753149040073,-642.64119504,0.00017472,2]
[373907270,1753149040082,-460.0,0.00017472,2]
[373907272,1753149040091,-460.0,0.00017472,2]
[373907274,1753149040100,-460.0,0.00017472,2]
[373907276,1753149040109,-460.0,0.00017472,2]
[373907278,1753149040118,-460.0,0.00017472,2]
[373907281,1753149040128,-460.0,0.00017472,2]
[373907283,1753149040137,-460.0,0.00017472,2]
[373907285,1753149040146,-460.0,0.00017472,2]
[373907287,1753149040155,-460.0,0.00017472,2]
[373907289,1753149040165,-462.93351732,0.00017472,2]
[373907291,1753149040173,-460.0,0.00017472,2]
[373907293,1753149040183,-460.0,0.00017472,2]
[373907295,1753149040192,-461.23950154,0.00017472,2]
[373907297,1753149040201,-460.0,0.00017472,2]
[373907299,1753149040210,-460.0,0.00017472,2]
[373907301,1753149040219,-461.30347864,0.00017472,2]
[373907303,1753149040229,-462.3460511,0.00017472,2]
[373907305,1753149040237,-460.0,0.00017472,2]
[373907307,1753149040248,-460.0,0.00017472,2]
[373907309,1753149040257,-460.0,0.00017472,2]
[373907310,1753149040267,-460.0,0.00017472,2]
[373907313,1753149040277,-460.0,0.00017472,2]
[373907315,1753149040287,-460.0,0.00017472,2]
[373907318,1753149040296,-460.0,0.00017472,2]
[373907320,1753149040306,-461.10709651,0.00017472,2]
[373907322,1753149040315,-460.0,0.00017472,2]
[373907324,1753149040325,-460.0,0.00017472,2]
[373907326,1753149040334,-460.0,0.00017472,2]
[373907328,1753149040344,-460.0,0.00017472,2]
[373907330,1753149040352,-593.06945612,0.00017472,2]
[373907332,1753149040363,-460.0,0.00017472,2]
[373907334,1753149040372,-460.0,0.00017472,2]
[373907336,1753149040381,-8240.57,0.00017472,2]
[373907338,1753149040391,-460.0,0.00017472,2]
[373907340,1753149040400,-460.0,0.00017472,2]
[373907342,1753149040409,-460.0,0.00017472,2]
[373907344,1753149040419,-604.38675791,0.00017472,2]
[373907346,1753149040428,-460.0,0.00017472,2]
[373907348,1753149040437,-460.0,0.00017472,2]
[373907350,1753149040447,-460.0,0.00017472,2]
[373907352,1753149040456,-463.03071705,0.00017472,2]
[373907354,1753149040465,-460.0,0.00017472,2]
[373907356,1753149040474,-462.65989763,0.00017472,2]
[373907358,1753149040483,-500.0,0.00017472,2]
[373907360,1753149040492,-386.55143404,0.00017499,2]
[373907362,1753149040502,-577.1515091,0.000175,2]
[373907364,1753149040511,-568853.90244302,0.000175,2]
[373907366,1753149040520,-1369.32,0.00017544,3]
[373907368,1753149040529,-684.66,0.00017544,3]
[373907370,1753149040538,-342.33,0.00017544,3]
[373907372,1753149040547,-171.17,0.00017544,3]
[373907374,1753149040556,-513.51,0.00017544,3]
[373907376,1753149040566,-460.0,0.00017545,2]
[373907378,1753149040576,-463.14692298,0.00017545,2]
[373907380,1753149040585,-462.39955965,0.00017545,2]
[373907382,1753149040595,-461.54332183,0.00017545,2]
[373907384,1753149040612,-460.75249739,0.00017545,2]
[373907386,1753149040622,-461.03941453,0.00017545,2]
[373907388,1753149040631,-460.86038786,0.00017545,2]
[373907390,1753149040641,-595.27859935,0.00017545,2]
[373907392,1753149040650,-461.34721455,0.00017545,2]
[373907394,1753149040659,-460.4404546,0.00017545,2]
[373907396,1753149040669,-460.9844636,0.00017545,2]
[373907398,1753149040679,-460.0,0.00017545,2]
[373907400,1753149040688,-460.0,0.00017545,2]
[373907402,1753149040697,-460.0,0.00017545,2]
[373907404,1753149040707,-460.0,0.00017545,2]
[373907406,1753149040716,-460.0,0.00017545,2]
[373907408,1753149040725,-994.62039263,0.00017545,2]
[373907410,1753149040735,-461.18584562,0.00017545,2]
[373907412,1753149040748,-461.81785526,0.00017545,2]